[Event "Titled Tuesday Blitz January 17 Early 2023"]
[White "Vagman, Roy"]
[Black "Zampronha, Wladimir Camilo"]
[WhiteFideId "2828995"]
[BlackFideId "2103087"]
[WhiteElo "2273"]
[BlackElo "2176"]
[Result "1-0"]
[Round "04"]
[TimeControl "180+2"]
[Date "2023.01.17"]
[WhiteClock "0:00:54"]
[BlackClock "0:00:47"]

1. e4 {[%clk 0:03:00]}  c5 {[%clk 0:02:58]} 2. Nc3 {[%clk 0:02:56]}  e6 {[%clk 0:02:58]} 3. Nf3 {[%clk 0:02:44]}  Nc6 {[%clk 0:02:59]} 4. d4 {[%clk 0:02:40]}  cxd4 {[%clk 0:03:00]} 5. Nxd4 {[%clk 0:02:41]}  Qc7 {[%clk 0:03:00]} 6. g3 {[%clk 0:02:40]}  a6 {[%clk 0:02:59]} 7. Bg2 {[%clk 0:02:40]}  Nf6 {[%clk 0:03:00]} 8. O-O {[%clk 0:02:41]}  Be7 {[%clk 0:03:00]} 9. Nxc6 {[%clk 0:02:41]}  dxc6 {[%clk 0:02:48]} 10. Qe2 {[%clk 0:02:32]}  e5 {[%clk 0:02:40]} 11. h3 {[%clk 0:02:28]}  O-O {[%clk 0:02:40]} 12. Be3 {[%clk 0:02:27]}  b5 {[%clk 0:02:36]} 13. f4 {[%clk 0:02:26]}  b4 {[%clk 0:02:30]} 14. Nd1 {[%clk 0:02:14]}  a5 {[%clk 0:02:30]} 15. Qf3 {[%clk 0:02:06]}  Ba6 {[%clk 0:02:29]} 16. Rf2 {[%clk 0:02:06]}  Rad8 {[%clk 0:02:21]} 17. f5 {[%clk 0:01:59]}  c5 {[%clk 0:02:16]} 18. g4 {[%clk 0:01:49]}  Bb7 {[%clk 0:02:16]} 19. g5 {[%clk 0:01:28]}  Nxe4 {[%clk 0:02:15]} 20. Rf1 {[%clk 0:01:24]}  Nd6 {[%clk 0:02:09]} 21. Qg4 {[%clk 0:01:22]}  Bxg2 {[%clk 0:02:09]} 22. Qxg2 {[%clk 0:01:23]}  Qb7 {[%clk 0:01:44]} 23. f6 {[%clk 0:01:14]}  Qxg2+ {[%clk 0:01:42]} 24. Kxg2 {[%clk 0:01:15]}  gxf6 {[%clk 0:01:19]} 25. gxf6 {[%clk 0:01:16]}  Bxf6 {[%clk 0:01:19]} 26. Rxf6 {[%clk 0:01:16]}  Ne4 {[%clk 0:01:16]} 27. Rf5 {[%clk 0:01:07]}  Rd5 {[%clk 0:01:06]} 28. Nf2 {[%clk 0:01:04]}  Nxf2 {[%clk 0:01:05]} 29. Kxf2 {[%clk 0:01:03]}  f6 {[%clk 0:00:58]} 30. Bh6 {[%clk 0:00:59]}  Rf7 {[%clk 0:00:57]} 31. Rg1+ {[%clk 0:00:59]}  Kh8 {[%clk 0:00:56]} 32. Ke2 {[%clk 0:00:54]}  Rd8 {[%clk 0:00:49]} 33. Bg5 {[%clk 0:00:53]}  Rg8 {[%clk 0:00:47]} 34. Bxf6+ {[%clk 0:00:53]}  Rxf6 {[%clk 0:00:47]} 35. Rxg8+ {[%clk 0:00:53]}  Kxg8 {[%clk 0:00:47]} 36. Rxf6 {[%clk 0:00:54]} 1-0


[Site "https://www.chess.com"]

[Event "Titled Tuesday Blitz January 17 Early 2023"]
[White "Kabilov, Amin"]
[Black "Kazancev, Valerij M"]
[WhiteFideId "14700859"]
[BlackFideId "4179609"]
[WhiteElo "2207"]
[BlackElo "2313"]
[Result "1-0"]
[Round "04"]
[TimeControl "180+2"]
[Date "2023.01.17"]
[WhiteClock "0:00:09"]
[BlackClock "0:00:23"]

1. d4 {[%clk 0:03:00]}  g6 {[%clk 0:02:56]} 2. c4 {[%clk 0:03:00]}  Bg7 {[%clk 0:02:57]} 3. Nf3 {[%clk 0:03:00]}  e6 {[%clk 0:02:57]} 4. Nc3 {[%clk 0:03:01]}  Ne7 {[%clk 0:02:58]} 5. h4 {[%clk 0:02:51]}  h6 {[%clk 0:02:58]} 6. Bf4 {[%clk 0:02:43]}  a6 {[%clk 0:02:57]} 7. Qd2 {[%clk 0:02:43]}  d6 {[%clk 0:02:47]} 8. g3 {[%clk 0:02:27]}  Nd7 {[%clk 0:02:46]} 9. Bg2 {[%clk 0:02:27]}  Rb8 {[%clk 0:02:46]} 10. e4 {[%clk 0:02:18]}  b5 {[%clk 0:02:45]} 11. cxb5 {[%clk 0:02:03]}  axb5 {[%clk 0:02:46]} 12. O-O {[%clk 0:02:03]}  b4 {[%clk 0:02:46]} 13. Nd1 {[%clk 0:01:57]}  Ba6 {[%clk 0:02:19]} 14. Re1 {[%clk 0:01:56]}  Rb6 {[%clk 0:02:10]} 15. Be3 {[%clk 0:01:21]}  d5 {[%clk 0:02:02]} 16. Bf4 {[%clk 0:01:15]}  Nf6 {[%clk 0:01:57]} 17. exd5 {[%clk 0:01:11]}  Nexd5 {[%clk 0:01:56]} 18. Be5 {[%clk 0:01:10]}  O-O {[%clk 0:01:55]} 19. Ne3 {[%clk 0:01:09]}  c6 {[%clk 0:01:33]} 20. Rac1 {[%clk 0:01:00]}  Re8 {[%clk 0:01:20]} 21. Nc4 {[%clk 0:01:00]}  Bxc4 {[%clk 0:01:16]} 22. Rxc4 {[%clk 0:01:00]}  Qa8 {[%clk 0:01:14]} 23. b3 {[%clk 0:00:59]}  Ra6 {[%clk 0:01:14]} 24. Rc2 {[%clk 0:00:42]}  Nc3 {[%clk 0:01:11]} 25. a4 {[%clk 0:00:41]}  Qa7 {[%clk 0:00:57]} 26. Qd3 {[%clk 0:00:35]}  Rd8 {[%clk 0:00:49]} 27. Bf1 {[%clk 0:00:21]}  Ra5 {[%clk 0:00:47]} 28. Nd2 {[%clk 0:00:20]}  Rxe5 {[%clk 0:00:40]} 29. Rxe5 {[%clk 0:00:19]}  Rxd4 {[%clk 0:00:41]} 30. Qe3 {[%clk 0:00:20]}  Nfd5 {[%clk 0:00:40]} 31. Qe1 {[%clk 0:00:17]}  Bxe5 {[%clk 0:00:36]} 32. Qxe5 {[%clk 0:00:17]}  Qc7 {[%clk 0:00:35]} 33. Qxd4 {[%clk 0:00:15]}  c5 {[%clk 0:00:34]} 34. Qc4 {[%clk 0:00:14]}  Qe5 {[%clk 0:00:34]} 35. Nf3 {[%clk 0:00:13]}  Qf5 {[%clk 0:00:33]} 36. Qd3 {[%clk 0:00:12]}  Qg4 {[%clk 0:00:31]} 37. Bg2 {[%clk 0:00:11]}  g5 {[%clk 0:00:26]} 38. hxg5 {[%clk 0:00:10]}  hxg5 {[%clk 0:00:26]} 39. a5 {[%clk 0:00:10]}  Qh5 {[%clk 0:00:22]} 40. a6 {[%clk 0:00:09]}  g4 {[%clk 0:00:23]} 41. Nh4 {[%clk 0:00:09]} 1-0


[Site "https://www.chess.com"]

[Event "Titled Tuesday Blitz January 17 Early 2023"]
[White "Tomaszewski, Kacper"]
[Black "Bashirli, Saadat"]
[WhiteFideId "1127373"]
[BlackFideId "13429990"]
[WhiteElo "2313"]
[BlackElo "1571"]
[Result "1-0"]
[Round "04"]
[TimeControl "180+2"]
[Date "2023.01.17"]
[WhiteClock "0:00:37"]
[BlackClock "0:00:43"]

1. c4 {[%clk 0:03:00]}  e6 {[%clk 0:02:59]} 2. d4 {[%clk 0:02:59]}  d5 {[%clk 0:02:59]} 3. Nc3 {[%clk 0:03:00]}  c6 {[%clk 0:02:59]} 4. Nf3 {[%clk 0:02:57]}  dxc4 {[%clk 0:02:59]} 5. a4 {[%clk 0:02:56]}  Bb4 {[%clk 0:02:58]} 6. Bg5 {[%clk 0:02:51]}  Nf6 {[%clk 0:02:46]} 7. e4 {[%clk 0:02:49]}  h6 {[%clk 0:02:42]} 8. Bxf6 {[%clk 0:02:49]}  Qxf6 {[%clk 0:02:40]} 9. Bxc4 {[%clk 0:02:49]}  Nd7 {[%clk 0:02:39]} 10. O-O {[%clk 0:02:49]}  Nb6 {[%clk 0:02:37]} 11. Qb3 {[%clk 0:02:38]}  Bxc3 {[%clk 0:02:27]} 12. bxc3 {[%clk 0:02:37]}  O-O {[%clk 0:02:27]} 13. Bd3 {[%clk 0:02:34]}  Rd8 {[%clk 0:02:22]} 14. a5 {[%clk 0:02:34]}  Nd7 {[%clk 0:02:19]} 15. Rfe1 {[%clk 0:02:08]}  Nc5 {[%clk 0:02:16]} 16. Qc2 {[%clk 0:02:03]}  Nxd3 {[%clk 0:02:15]} 17. Qxd3 {[%clk 0:02:04]}  c5 {[%clk 0:02:16]} 18. d5 {[%clk 0:01:57]}  exd5 {[%clk 0:02:14]} 19. exd5 {[%clk 0:01:58]}  Bf5 {[%clk 0:02:11]} 20. Qd2 {[%clk 0:01:55]}  Qd6 {[%clk 0:02:08]} 21. c4 {[%clk 0:01:53]}  Bg4 {[%clk 0:01:57]} 22. Ne5 {[%clk 0:01:50]}  Bf5 {[%clk 0:01:54]} 23. Qf4 {[%clk 0:01:46]}  Qf6 {[%clk 0:01:47]} 24. g4 {[%clk 0:01:41]}  Bg6 {[%clk 0:01:40]} 25. Qxf6 {[%clk 0:01:38]}  gxf6 {[%clk 0:01:38]} 26. Nxg6 {[%clk 0:01:38]}  fxg6 {[%clk 0:01:37]} 27. Re7 {[%clk 0:01:39]}  b6 {[%clk 0:01:34]} 28. a6 {[%clk 0:01:16]}  b5 {[%clk 0:01:31]} 29. cxb5 {[%clk 0:01:09]}  Rxd5 {[%clk 0:01:30]} 30. Rb7 {[%clk 0:00:50]}  c4 {[%clk 0:01:27]} 31. Re1 {[%clk 0:00:47]}  Re5 {[%clk 0:01:18]} 32. Rxe5 {[%clk 0:00:43]}  fxe5 {[%clk 0:01:17]} 33. Kf1 {[%clk 0:00:43]}  Rc8 {[%clk 0:01:11]} 34. Ke2 {[%clk 0:00:43]}  c3 {[%clk 0:01:11]} 35. Kd1 {[%clk 0:00:42]}  Ra8 {[%clk 0:01:06]} 36. Kc2 {[%clk 0:00:42]}  Rf8 {[%clk 0:01:04]} 37. Kxc3 {[%clk 0:00:39]}  Rxf2 {[%clk 0:01:02]} 38. Rxa7 {[%clk 0:00:39]}  Rxh2 {[%clk 0:01:02]} 39. b6 {[%clk 0:00:39]}  Ra2 {[%clk 0:00:47]} 40. b7 {[%clk 0:00:38]}  Ra3+ {[%clk 0:00:43]} 41. Kb2 {[%clk 0:00:37]} 1-0


[Site "https://www.chess.com"]

[Event "Titled Tuesday Blitz January 17 Early 2023"]
[White "I_KID_you_not"]
[Black "Myshakov, Fyodor"]
[BlackFideId "14111284"]
[WhiteElo "2332"]
[BlackElo "2292"]
[Result "1-0"]
[Round "04"]
[TimeControl "180+2"]
[Date "2023.01.17"]
[WhiteClock "0:01:11"]
[BlackClock "0:00:20"]

1. e4 {[%clk 0:03:00]}  c6 {[%clk 0:02:59]} 2. d4 {[%clk 0:03:00]}  d5 {[%clk 0:03:00]} 3. exd5 {[%clk 0:03:01]}  cxd5 {[%clk 0:03:01]} 4. Bd3 {[%clk 0:03:01]}  Nf6 {[%clk 0:03:01]} 5. c3 {[%clk 0:03:01]}  Nc6 {[%clk 0:03:02]} 6. Bf4 {[%clk 0:03:01]}  g6 {[%clk 0:03:02]} 7. Nf3 {[%clk 0:02:58]}  Bg7 {[%clk 0:03:02]} 8. O-O {[%clk 0:02:51]}  O-O {[%clk 0:03:02]} 9. Re1 {[%clk 0:02:49]}  Bf5 {[%clk 0:03:02]} 10. Bxf5 {[%clk 0:02:49]}  gxf5 {[%clk 0:03:02]} 11. Nbd2 {[%clk 0:02:48]}  Ne4 {[%clk 0:03:01]} 12. Ne5 {[%clk 0:02:41]}  Nxe5 {[%clk 0:02:58]} 13. Bxe5 {[%clk 0:02:41]}  Bxe5 {[%clk 0:02:56]} 14. dxe5 {[%clk 0:02:41]}  e6 {[%clk 0:02:56]} 15. Nxe4 {[%clk 0:02:31]}  dxe4 {[%clk 0:02:52]} 16. Qh5 {[%clk 0:02:32]}  Qd2 {[%clk 0:02:26]} 17. Re3 {[%clk 0:02:25]}  Kh8 {[%clk 0:02:01]} 18. Rd1 {[%clk 0:02:18]}  f4 {[%clk 0:01:23]} 19. Rh3 {[%clk 0:02:11]}  Qxd1+ {[%clk 0:01:21]} 20. Qxd1 {[%clk 0:02:10]}  Rg8 {[%clk 0:01:20]} 21. Qh5 {[%clk 0:01:56]}  Rg7 {[%clk 0:01:19]} 22. Qh4 {[%clk 0:01:46]}  Kg8 {[%clk 0:01:02]} 23. Qxf4 {[%clk 0:01:43]}  Rd8 {[%clk 0:01:02]} 24. g3 {[%clk 0:01:42]}  Rd1+ {[%clk 0:00:54]} 25. Kg2 {[%clk 0:01:42]}  Rd5 {[%clk 0:00:41]} 26. Rh4 {[%clk 0:01:31]}  Kf8 {[%clk 0:00:39]} 27. Qxe4 {[%clk 0:01:29]}  Rg5 {[%clk 0:00:38]} 28. Qb4+ {[%clk 0:01:26]}  Kg8 {[%clk 0:00:33]} 29. f4 {[%clk 0:01:26]}  Rg6 {[%clk 0:00:29]} 30. Qxb7 {[%clk 0:01:23]}  Kg7 {[%clk 0:00:28]} 31. c4 {[%clk 0:01:17]}  Rd4 {[%clk 0:00:27]} 32. c5 {[%clk 0:01:14]}  a5 {[%clk 0:00:28]} 33. c6 {[%clk 0:01:14]}  Rd2+ {[%clk 0:00:29]} 34. Kh3 {[%clk 0:01:14]}  Kh8 {[%clk 0:00:19]} 35. c7 {[%clk 0:01:11]}  Rg8 {[%clk 0:00:20]} 36. c8=Q {[%clk 0:01:11]} 1-0


[Site "https://www.chess.com"]

[Event "Titled Tuesday Blitz January 17 Early 2023"]
[White "Nguyen Hong Nhung"]
[Black "De Souza, Cristiano Gomes"]
[WhiteFideId "12412201"]
[BlackFideId "2151758"]
[WhiteElo "2003"]
[BlackElo "2018"]
[Result "1-0"]
[Round "04"]
[TimeControl "180+2"]
[Date "2023.01.17"]
[WhiteClock "0:00:30"]
[BlackClock "0:01:23"]

1. e4 {[%clk 0:03:00]}  c5 {[%clk 0:02:56]} 2. Nc3 {[%clk 0:02:59]}  d6 {[%clk 0:02:56]} 3. f4 {[%clk 0:02:58]}  a6 {[%clk 0:02:54]} 4. a4 {[%clk 0:02:58]}  Nc6 {[%clk 0:02:55]} 5. Nf3 {[%clk 0:02:58]}  Bg4 {[%clk 0:02:53]} 6. Bc4 {[%clk 0:02:57]}  e6 {[%clk 0:02:53]} 7. O-O {[%clk 0:02:56]}  g6 {[%clk 0:02:52]} 8. d3 {[%clk 0:02:53]}  Bg7 {[%clk 0:02:51]} 9. Qe1 {[%clk 0:02:52]}  Bxf3 {[%clk 0:02:50]} 10. Rxf3 {[%clk 0:02:53]}  Nd4 {[%clk 0:02:50]} 11. Rf2 {[%clk 0:02:53]}  Ne7 {[%clk 0:02:50]} 12. Kh1 {[%clk 0:02:52]}  O-O {[%clk 0:02:50]} 13. Qd1 {[%clk 0:02:31]}  f5 {[%clk 0:02:46]} 14. Be3 {[%clk 0:02:10]}  Kh8 {[%clk 0:02:38]} 15. Bxd4 {[%clk 0:02:08]}  Bxd4 {[%clk 0:02:37]} 16. Rf3 {[%clk 0:02:07]}  Qd7 {[%clk 0:02:29]} 17. Rb1 {[%clk 0:01:57]}  Bg7 {[%clk 0:02:27]} 18. Qd2 {[%clk 0:01:39]}  d5 {[%clk 0:02:26]} 19. exd5 {[%clk 0:01:36]}  exd5 {[%clk 0:02:26]} 20. Bb3 {[%clk 0:01:29]}  b5 {[%clk 0:02:24]} 21. Rh3 {[%clk 0:01:16]}  b4 {[%clk 0:02:21]} 22. Ne2 {[%clk 0:01:15]}  Nc6 {[%clk 0:02:15]} 23. c3 {[%clk 0:01:09]}  a5 {[%clk 0:02:13]} 24. Ng1 {[%clk 0:01:03]}  Rfe8 {[%clk 0:02:02]} 25. Nf3 {[%clk 0:01:02]}  Re7 {[%clk 0:02:00]} 26. Qf2 {[%clk 0:00:58]}  Rae8 {[%clk 0:01:56]} 27. Qxc5 {[%clk 0:00:55]}  bxc3 {[%clk 0:01:52]} 28. bxc3 {[%clk 0:00:56]}  d4 {[%clk 0:01:44]} 29. Bd5 {[%clk 0:00:49]}  dxc3 {[%clk 0:01:26]} 30. Bxc6 {[%clk 0:00:44]}  Qxd3 {[%clk 0:01:23]} 31. Rg1 {[%clk 0:00:30]} 1-0


[Site "https://www.chess.com"]

[Event "Titled Tuesday Blitz January 17 Early 2023"]
[White "Sanchez, Robert"]
[Black "Ruge, Edison"]
[WhiteFideId "2034360"]
[BlackFideId "4401000"]
[WhiteElo "1966"]
[BlackElo "2201"]
[Result "0-1"]
[Round "04"]
[TimeControl "180+2"]
[Date "2023.01.17"]
[WhiteClock "0:00:33"]
[BlackClock "0:00:27"]

1. e4 {[%clk 0:02:41]}  e5 {[%clk 0:02:44]} 2. Nf3 {[%clk 0:02:41]}  Nc6 {[%clk 0:02:43]} 3. Bb5 {[%clk 0:02:42]}  f5 {[%clk 0:02:42]} 4. d3 {[%clk 0:02:41]}  fxe4 {[%clk 0:02:42]} 5. dxe4 {[%clk 0:02:42]}  Nf6 {[%clk 0:02:42]} 6. Bc4 {[%clk 0:02:40]}  Bc5 {[%clk 0:02:28]} 7. O-O {[%clk 0:02:40]}  Qe7 {[%clk 0:02:25]} 8. Nc3 {[%clk 0:02:36]}  d6 {[%clk 0:02:24]} 9. Bg5 {[%clk 0:02:36]}  Be6 {[%clk 0:02:20]} 10. Nd5 {[%clk 0:02:34]}  Bxd5 {[%clk 0:02:20]} 11. Bxd5 {[%clk 0:02:35]}  Nd8 {[%clk 0:02:16]} 12. c3 {[%clk 0:02:28]}  c6 {[%clk 0:02:16]} 13. Bc4 {[%clk 0:02:28]}  Nf7 {[%clk 0:02:12]} 14. b4 {[%clk 0:02:25]}  Bb6 {[%clk 0:02:11]} 15. a4 {[%clk 0:02:26]}  O-O {[%clk 0:02:05]} 16. a5 {[%clk 0:02:23]}  Bc7 {[%clk 0:02:04]} 17. a6 {[%clk 0:02:24]}  b5 {[%clk 0:02:03]} 18. Bb3 {[%clk 0:02:23]}  Kh8 {[%clk 0:02:03]} 19. Re1 {[%clk 0:02:20]}  Rae8 {[%clk 0:01:49]} 20. Qd3 {[%clk 0:02:13]}  Nxg5 {[%clk 0:01:25]} 21. Nxg5 {[%clk 0:02:13]}  Ng4 {[%clk 0:01:26]} 22. Ne6 {[%clk 0:01:52]}  Nxf2 {[%clk 0:01:14]} 23. Qg3 {[%clk 0:01:49]}  Bb6 {[%clk 0:01:04]} 24. Re3 {[%clk 0:01:38]}  Rf6 {[%clk 0:00:55]} 25. Rf1 {[%clk 0:01:24]}  Bxe3 {[%clk 0:00:49]} 26. Qxe3 {[%clk 0:01:24]}  Ng4 {[%clk 0:00:49]} 27. Qg3 {[%clk 0:01:11]}  Rxf1+ {[%clk 0:00:48]} 28. Kxf1 {[%clk 0:01:12]}  Qf6+ {[%clk 0:00:48]} 29. Kg1 {[%clk 0:01:11]}  Rxe6 {[%clk 0:00:44]} 30. Qxg4 {[%clk 0:01:08]}  Re8 {[%clk 0:00:44]} 31. h3 {[%clk 0:00:49]}  Qe7 {[%clk 0:00:37]} 32. Kh2 {[%clk 0:00:39]}  Rf8 {[%clk 0:00:36]} 33. Be6 {[%clk 0:00:39]}  Rf4 {[%clk 0:00:32]} 34. Qh5 {[%clk 0:00:33]}  Qxe6 {[%clk 0:00:29]} 35. Qg5 {[%clk 0:00:33]}  Qf6 {[%clk 0:00:28]} 36. Qh5 {[%clk 0:00:33]}  g6 {[%clk 0:00:27]} 37. Qh6 {[%clk 0:00:33]} 0-1


[Site "https://www.chess.com"]

[Event "Titled Tuesday Blitz January 17 Early 2023"]
[White "Sihite, Chelsie Monica Ignesias"]
[Black "Mitrovic, Darko R"]
[WhiteFideId "7101198"]
[BlackFideId "927023"]
[WhiteElo "2266"]
[BlackElo "2220"]
[Result "1-0"]
[Round "04"]
[TimeControl "180+2"]
[Date "2023.01.17"]
[WhiteClock "0:00:44"]
[BlackClock "0:00:04"]

1. c4 {[%clk 0:03:00]}  e5 {[%clk 0:02:56]} 2. g3 {[%clk 0:03:00]}  g6 {[%clk 0:02:55]} 3. Bg2 {[%clk 0:03:00]}  Bg7 {[%clk 0:02:56]} 4. Nc3 {[%clk 0:03:01]}  Nc6 {[%clk 0:02:55]} 5. Nf3 {[%clk 0:03:01]}  Nge7 {[%clk 0:02:48]} 6. O-O {[%clk 0:03:01]}  O-O {[%clk 0:02:49]} 7. d3 {[%clk 0:03:01]}  d6 {[%clk 0:02:48]} 8. h3 {[%clk 0:03:00]}  f5 {[%clk 0:02:45]} 9. Rb1 {[%clk 0:02:59]}  a5 {[%clk 0:02:44]} 10. a3 {[%clk 0:02:56]}  h6 {[%clk 0:02:42]} 11. Bd2 {[%clk 0:02:52]}  g5 {[%clk 0:02:34]} 12. Qc1 {[%clk 0:02:15]}  f4 {[%clk 0:02:19]} 13. g4 {[%clk 0:02:01]}  h5 {[%clk 0:01:42]} 14. Nh2 {[%clk 0:01:42]}  hxg4 {[%clk 0:01:30]} 15. Nxg4 {[%clk 0:01:35]}  Nd4 {[%clk 0:01:23]} 16. Qd1 {[%clk 0:01:14]}  Ng6 {[%clk 0:01:11]} 17. e3 {[%clk 0:01:11]}  Nf5 {[%clk 0:01:04]} 18. Ne4 {[%clk 0:01:02]}  Nfh4 {[%clk 0:00:56]} 19. Kh2 {[%clk 0:00:58]}  Nxg2 {[%clk 0:00:32]} 20. Kxg2 {[%clk 0:00:57]}  f3+ {[%clk 0:00:18]} 21. Kh2 {[%clk 0:00:56]}  Bxg4 {[%clk 0:00:17]} 22. hxg4 {[%clk 0:00:55]}  Kf7 {[%clk 0:00:15]} 23. Kg3 {[%clk 0:00:56]}  Ke6 {[%clk 0:00:10]} 24. Rh1 {[%clk 0:00:54]}  Nh4 {[%clk 0:00:09]} 25. Nxg5+ {[%clk 0:00:52]}  Qxg5 {[%clk 0:00:09]} 26. Rxh4 {[%clk 0:00:53]}  e4 {[%clk 0:00:07]} 27. Qb3 {[%clk 0:00:49]}  Be5+ {[%clk 0:00:05]} 28. Kh3 {[%clk 0:00:48]}  Qxh4+ {[%clk 0:00:04]} 29. Kxh4 {[%clk 0:00:47]}  Rh8+ {[%clk 0:00:04]} 30. Kg5 {[%clk 0:00:44]} 1-0


[Site "https://www.chess.com"]

[Event "Titled Tuesday Blitz January 17 Early 2023"]
[White "Buchenau, Frank"]
[Black "Tarnowska, Aleksandra"]
[WhiteFideId "4604350"]
[BlackFideId "1180967"]
[WhiteElo "2222"]
[BlackElo "1835"]
[Result "1-0"]
[Round "04"]
[TimeControl "180+2"]
[Date "2023.01.17"]
[WhiteClock "0:00:52"]
[BlackClock "0:00:05"]

1. e4 {[%clk 0:02:59]}  c5 {[%clk 0:02:59]} 2. Nf3 {[%clk 0:02:58]}  e6 {[%clk 0:02:59]} 3. d4 {[%clk 0:02:58]}  cxd4 {[%clk 0:02:59]} 4. Nxd4 {[%clk 0:02:59]}  a6 {[%clk 0:03:00]} 5. Bd3 {[%clk 0:02:58]}  Bc5 {[%clk 0:02:57]} 6. Nb3 {[%clk 0:02:57]}  Be7 {[%clk 0:02:57]} 7. Qg4 {[%clk 0:02:54]}  g6 {[%clk 0:02:52]} 8. O-O {[%clk 0:02:51]}  Nf6 {[%clk 0:02:50]} 9. Qe2 {[%clk 0:02:50]}  d6 {[%clk 0:02:27]} 10. Bh6 {[%clk 0:02:48]}  Nbd7 {[%clk 0:02:21]} 11. f4 {[%clk 0:02:38]}  Qc7 {[%clk 0:02:20]} 12. a4 {[%clk 0:02:33]}  b6 {[%clk 0:02:20]} 13. Na3 {[%clk 0:02:21]}  Bb7 {[%clk 0:02:20]} 14. a5 {[%clk 0:02:16]}  b5 {[%clk 0:02:08]} 15. c4 {[%clk 0:02:15]}  b4 {[%clk 0:01:37]} 16. Nc2 {[%clk 0:02:14]}  Nc5 {[%clk 0:01:29]} 17. Nxc5 {[%clk 0:02:13]}  dxc5 {[%clk 0:01:24]} 18. e5 {[%clk 0:02:05]}  Nd7 {[%clk 0:01:10]} 19. Be4 {[%clk 0:02:04]}  Bf8 {[%clk 0:00:44]} 20. Bxf8 {[%clk 0:01:54]}  Nxf8 {[%clk 0:00:20]} 21. Qf3 {[%clk 0:01:53]}  Bxe4 {[%clk 0:00:19]} 22. Qxe4 {[%clk 0:01:54]}  Rc8 {[%clk 0:00:17]} 23. Ne3 {[%clk 0:01:50]}  Qc6 {[%clk 0:00:16]} 24. Qxc6+ {[%clk 0:01:46]}  Rxc6 {[%clk 0:00:17]} 25. Ng4 {[%clk 0:01:43]}  Nd7 {[%clk 0:00:16]} 26. Rad1 {[%clk 0:01:42]}  h5 {[%clk 0:00:16]} 27. Nf2 {[%clk 0:01:38]}  Ke7 {[%clk 0:00:15]} 28. Ne4 {[%clk 0:01:38]}  Rd8 {[%clk 0:00:16]} 29. Rd6 {[%clk 0:01:32]}  Rxd6 {[%clk 0:00:15]} 30. Nxd6 {[%clk 0:01:30]}  Nb8 {[%clk 0:00:13]} 31. g3 {[%clk 0:01:18]}  Nc6 {[%clk 0:00:12]} 32. Nb7 {[%clk 0:01:16]}  Rd2 {[%clk 0:00:10]} 33. Rf2 {[%clk 0:01:16]}  Rd1+ {[%clk 0:00:09]} 34. Kg2 {[%clk 0:01:15]}  f6 {[%clk 0:00:04]} 35. exf6+ {[%clk 0:01:12]}  Kxf6 {[%clk 0:00:05]} 36. Nxc5 {[%clk 0:01:09]}  Nxa5 {[%clk 0:00:05]} 37. Re2 {[%clk 0:01:10]}  Nxc4 {[%clk 0:00:04]} 38. Rxe6+ {[%clk 0:01:08]}  Kg7 {[%clk 0:00:04]} 39. b3 {[%clk 0:01:02]}  Rd2+ {[%clk 0:00:04]} 40. Kf3 {[%clk 0:01:00]}  Na5 {[%clk 0:00:04]} 41. Rxa6 {[%clk 0:00:57]}  Ra2 {[%clk 0:00:04]} 42. Nb7 {[%clk 0:00:54]}  Rb2 {[%clk 0:00:04]} 43. Nxa5 {[%clk 0:00:53]}  Rxb3+ {[%clk 0:00:05]} 44. Nxb3 {[%clk 0:00:52]} 1-0


[Site "https://www.chess.com"]

[Event "Titled Tuesday Blitz January 17 Early 2023"]
[White "Aung Thant Zin"]
[Black "Jovic, Stanoje"]
[WhiteFideId "13000063"]
[BlackFideId "905020"]
[WhiteElo "2268"]
[BlackElo "2075"]
[Result "0-1"]
[Round "04"]
[TimeControl "180+2"]
[Date "2023.01.17"]
[WhiteClock "0:00:29"]
[BlackClock "0:01:25"]

1. e4 {[%clk 0:02:58]}  c6 {[%clk 0:03:00]} 2. d4 {[%clk 0:02:59]}  d5 {[%clk 0:03:00]} 3. Nc3 {[%clk 0:02:59]}  dxe4 {[%clk 0:03:00]} 4. Nxe4 {[%clk 0:02:58]}  Nf6 {[%clk 0:03:00]} 5. Nxf6+ {[%clk 0:02:58]}  exf6 {[%clk 0:03:00]} 6. Nf3 {[%clk 0:02:59]}  Bd6 {[%clk 0:03:00]} 7. Be2 {[%clk 0:02:59]}  O-O {[%clk 0:03:00]} 8. O-O {[%clk 0:02:59]}  Re8 {[%clk 0:03:00]} 9. Be3 {[%clk 0:02:59]}  Bg4 {[%clk 0:03:00]} 10. Qd2 {[%clk 0:02:58]}  Qc7 {[%clk 0:03:00]} 11. h3 {[%clk 0:02:57]}  Bh5 {[%clk 0:03:00]} 12. Rfe1 {[%clk 0:02:57]}  Nd7 {[%clk 0:03:00]} 13. c4 {[%clk 0:02:50]}  c5 {[%clk 0:02:58]} 14. Rad1 {[%clk 0:02:40]}  Re7 {[%clk 0:02:50]} 15. dxc5 {[%clk 0:02:37]}  Bxc5 {[%clk 0:02:48]} 16. Nd4 {[%clk 0:02:11]}  Bxe2 {[%clk 0:02:37]} 17. Rxe2 {[%clk 0:02:11]}  Bxd4 {[%clk 0:02:37]} 18. Qxd4 {[%clk 0:01:56]}  Rae8 {[%clk 0:02:13]} 19. Bf4 {[%clk 0:01:37]}  Ne5 {[%clk 0:02:11]} 20. b3 {[%clk 0:01:29]}  b6 {[%clk 0:02:11]} 21. Red2 {[%clk 0:01:20]}  g5 {[%clk 0:02:07]} 22. Bg3 {[%clk 0:01:09]}  Kg7 {[%clk 0:02:00]} 23. Qd6 {[%clk 0:01:05]}  Qb7 {[%clk 0:01:58]} 24. Qd5 {[%clk 0:01:04]}  Qa6 {[%clk 0:01:56]} 25. Qe4 {[%clk 0:00:54]}  Ng6 {[%clk 0:01:51]} 26. Qf5 {[%clk 0:00:51]}  h5 {[%clk 0:01:40]} 27. Bd6 {[%clk 0:00:42]}  Re2 {[%clk 0:01:35]} 28. Bb4 {[%clk 0:00:35]}  Qb7 {[%clk 0:01:28]} 29. Bc3 {[%clk 0:00:32]}  Qxg2+ {[%clk 0:01:25]} 30. Kxg2 {[%clk 0:00:29]}  Nh4+ {[%clk 0:01:25]} 0-1


[Site "https://www.chess.com"]

[Event "Titled Tuesday Blitz January 17 Early 2023"]
[White "Valle Maytin, Luis Enrique"]
[Black "Chilukuri, Sai Varshith"]
[WhiteFideId "3503666"]
[BlackFideId "25617125"]
[WhiteElo "2241"]
[BlackElo "1943"]
[Result "1-0"]
[Round "04"]
[TimeControl "180+2"]
[Date "2023.01.17"]
[WhiteClock "0:02:16"]
[BlackClock "0:02:03"]

1. e4 {[%clk 0:03:00]}  c5 {[%clk 0:03:00]} 2. Nf3 {[%clk 0:03:00]}  Nc6 {[%clk 0:03:00]} 3. d4 {[%clk 0:02:56]}  cxd4 {[%clk 0:03:01]} 4. Nxd4 {[%clk 0:02:57]}  Nf6 {[%clk 0:03:01]} 5. Nc3 {[%clk 0:02:57]}  e5 {[%clk 0:02:58]} 6. Ndb5 {[%clk 0:02:56]}  d6 {[%clk 0:02:58]} 7. Bg5 {[%clk 0:02:54]}  a6 {[%clk 0:02:58]} 8. Na3 {[%clk 0:02:54]}  b5 {[%clk 0:02:57]} 9. Nd5 {[%clk 0:02:54]}  Be7 {[%clk 0:02:57]} 10. Bxf6 {[%clk 0:02:51]}  Bxf6 {[%clk 0:02:57]} 11. c3 {[%clk 0:02:52]}  Rb8 {[%clk 0:02:57]} 12. Nc2 {[%clk 0:02:52]}  Bg5 {[%clk 0:02:57]} 13. Bd3 {[%clk 0:02:48]}  Be6 {[%clk 0:02:56]} 14. Ndb4 {[%clk 0:02:39]}  Nxb4 {[%clk 0:02:44]} 15. Nxb4 {[%clk 0:02:40]}  Qb6 {[%clk 0:02:44]} 16. a4 {[%clk 0:02:34]}  Bc4 {[%clk 0:02:20]} 17. Bxc4 {[%clk 0:02:31]}  bxc4 {[%clk 0:02:21]} 18. a5 {[%clk 0:02:31]}  Qb7 {[%clk 0:02:12]} 19. Qxd6 {[%clk 0:02:17]}  Qxe4+ {[%clk 0:02:10]} 20. Kf1 {[%clk 0:02:17]}  Be7 {[%clk 0:02:03]} 21. Qxb8+ {[%clk 0:02:16]} 1-0


[Site "https://www.chess.com"]